bitfinex-derivatives/quotes_ETHF0:USTF0_20250220
["timestamp","ask_amount","ask_price","bid_price","bid_amount"]
[1740012312480,2.378,2725.8,2725.7,0.73381]
[1740012312881,2.378,2725.8,2724.7,3.2078]
[1740012313074,3.2078,2725.3,2724.7,4.3]
[1740012313277,2.379,2725.2,2725.1,0.73947489]
[1740012313480,2.9235,2725.2,2725.1,0.73947489]
[1740012313777,3.4793,2725.2,2725.1,0.73947489]
[1740012314671,3.4793,2725.2,2725.1,0.00550489]
[1740012316079,4.0122,2725.2,2725.1,0.00550489]
[1740012316281,4.74614,2725.2,2725.1,0.00550489]
[1740012316977,4.74614,2725.2,2724.4,3.2078]
[1740012316978,0.73398,2725.1,2724.6,0.73411]
[1740012317179,3.2078,2725.0,2724.7,0.73407]
[1740012317381,3.2078,2725.0,2724.6,0.73409]
[1740012317979,3.2078,2725.0,2724.4,3.2078]
[1740012318183,3.2078,2725.0,2724.9,0.73403]
[1740012318774,3.2078,2725.0,2724.9,40.8]
[1740012319182,3.2078,2725.0,2724.6,1.0784]
[1740012319389,3.94181,2725.0,2724.6,1.0784]
[1740012320080,3.2078,2725.0,2724.6,1.0784]
[1740012320282,3.2078,2724.7,2724.6,0.5375]
[1740012320482,5.5938,2724.7,2724.5,0.98016561]
[1740012320686,0.5525,2724.6,2724.5,0.98016561]
[1740012321390,1.1399,2724.6,2724.5,0.98016561]
[1740012324588,1.87401,2724.6,2724.5,0.98016561]
[1740012325090,1.87401,2724.6,2724.5,0.00550489]
[1740012328289,1.1399,2724.6,2724.5,0.00550489]
[1740012328794,1.87401,2724.6,2724.5,0.00550489]
[1740012331490,1.93362816,2724.6,2724.5,0.00550489]
[1740012331994,4.31462816,2724.6,2724.5,0.00550489]
[1740012332388,4.31462915,2724.6,2724.5,0.00550489]
[1740012335795,4.31463095,2724.6,2724.5,0.00550489]
[1740012336698,4.31463095,2724.6,2723.9,1.1267]
[1740012336699,3.58052095,2724.6,2723.9,1.1267]
[1740012336903,3.2078,2724.1,2723.9,1.1267]
[1740012337201,5.5868,2724.1,2723.9,1.1267]
[1740012337402,5.5868,2724.1,2723.2,40.8]
[1740012337403,1.83568,2724.0,2722.5,3.2078]
[1740012337596,3.2078,2723.3,2723.0,0.73454]
[1740012337899,0.64674185,2723.9,2723.1,3.2078]
[1740012337900,0.00550489,2723.5,2723.1,3.2078]
[1740012338101,0.00550489,2723.5,2723.4,0.73443]
[1740012339007,3.2078,2723.9,2723.1,4.9108]
[1740012339300,3.2078,2723.9,2723.2,1.3498352]
[1740012339492,3.2078,2723.9,2723.7,0.73434]
[1740012339695,3.2078,2723.9,2723.8,0.5356]
[1740012339905,3.2078,2723.9,2723.8,1.26992]
[1740012340306,3.2078,2723.9,2723.8,0.5356]
[1740012340698,3.9421,2723.9,2723.8,0.5356]
[1740012340898,0.73435,2723.8,2723.5,0.97466072]
[1740012341094,3.2078,2723.6,2723.5,1.51026072]
[1740012341294,5.6108,2723.6,2723.5,1.51026072]
[1740012341804,6.34518,2723.6,2723.5,0.97466072]
[1740012342003,5.67044167,2723.6,2723.1,0.5521]
[1740012342197,1.1263,2723.5,2723.1,1.28659]
[1740012342597,0.73445,2723.4,2723.1,0.5521]
[1740012342802,3.2078,2723.2,2723.1,0.5521]
[1740012343207,5.6098,2723.2,2723.1,0.5521]
[1740012344012,5.6098,2723.2,2723.1,1.28661]
[1740012344708,5.6098,2723.2,2723.1,0.5521]
[1740012345007,5.6098,2723.2,2723.1,1.28661]
[1740012345513,5.6098,2723.2,2723.1,0.5521]
[1740012346508,5.6098,2723.2,2723.1,1.28661]
[1740012347011,2.402,2723.2,2723.1,1.28661]
[1740012347312,2.402,2723.2,2723.1,0.5521]
[1740012348001,2.402,2723.2,2723.1,1.28661]
[1740012348405,2.402,2723.2,2723.1,0.5521]
[1740012349300,2.402,2723.2,2723.1,1.28661]
[1740012350210,2.398,2723.4,2723.3,0.73446]
[1740012351211,5.6058,2723.5,2723.4,0.73443]
[1740012352414,3.2078,2723.5,2723.4,0.73443]
[1740012352604,3.2078,2723.5,2723.4,1.29503]
[1740012353211,3.7462,2723.9,2723.4,0.5606]
[1740012353411,2.396,2723.8,2723.7,0.73433]
[1740012354015,2.395,2723.8,2723.7,0.73433]
[1740012354215,3.7462,2723.9,2723.5,0.5432]
[1740012354428,2.396,2723.8,2723.5,0.5432]
[1740012354720,2.396,2723.8,2723.7,0.73435]
[1740012355912,3.2078,2723.9,2723.5,0.5432]
[1740012356112,5.6018,2723.9,2723.8,0.73432]
[1740012356818,6.33611,2723.9,2723.5,0.5432]
[1740012357019,0.5839,2723.8,2723.6,0.73436]
[1740012357215,1.31824,2723.8,2723.5,0.5432]
[1740012357412,0.5839,2723.8,2723.5,0.5432]
[1740012357616,3.2078,2723.6,2723.0,0.00550489]
[1740012357815,3.4924,2723.5,2723.2,0.73447]
[1740012358317,3.4924,2723.5,2723.2,1.29987]
[1740012358518,3.4924,2723.5,2723.2,0.5654]
[1740012358719,3.4924,2723.5,2723.3,0.73446]
[1740012360025,3.4924,2723.5,2723.2,1.29987]
[1740012360217,0.54,2723.4,2723.2,0.5654]
[1740012360516,0.54,2723.4,2723.2,1.29986]
[1740012360724,0.54,2723.4,2723.2,0.5654]
[1740012361310,3.2078,2723.3,2723.2,1.29988]
[1740012361620,3.2078,2723.3,2723.1,0.5615]
[1740012361819,3.2078,2723.3,2723.0,0.74003489]
[1740012362018,3.2078,2723.3,2723.0,0.00550489]
[1740012362224,3.2078,2723.3,2723.0,0.74003489]
[1740012362627,3.2078,2723.3,2723.0,0.00550489]
[1740012362825,3.2078,2723.3,2723.0,0.74001489]
[1740012363025,3.2078,2723.3,2723.0,0.00550489]
[1740012363323,3.2078,2723.3,2723.2,0.73448]
[1740012364515,3.2078,2723.3,2723.0,0.00550489]
[1740012364720,3.2078,2723.3,2723.0,0.74002489]
[1740012364925,3.2078,2723.3,2723.0,0.00550489]
[1740012365117,0.73451,2723.1,2723.0,0.00550489]
[1740012365319,3.18816501,2723.1,2723.0,0.00550489]
[1740012365517,3.18816678,2723.1,2723.0,0.00550489]
[1740012366125,3.12851,2723.1,2723.0,0.00550489]
[1740012366325,3.18816525,2723.1,2723.0,0.00550489]
[1740012367523,3.48018798,2723.1,2723.0,0.00550489]
[1740012368615,3.18816525,2723.1,2723.0,0.00550489]
[1740012370230,3.18816715,2723.1,2723.0,0.00550489]
[1740012371929,3.12851,2723.1,2723.0,0.00550489]
[1740012372131,3.18816688,2723.1,2723.0,0.00550489]
[1740012375536,3.18816634,2723.1,2723.0,0.00550489]
[1740012376031,0.73472,2722.4,2721.9,0.97466072]
[1740012376227,3.509,2722.3,2721.9,1.29632]
[1740012376423,4.0829,2722.3,2721.9,1.29632]
[1740012376731,3.2078,2722.2,2721.9,0.5615]
[1740012377031,3.94257,2722.2,2721.9,0.5615]
[1740012377629,3.94255,2722.2,2721.9,0.5615]
[1740012378536,3.2078,2722.2,2721.9,1.29633]
[1740012378726,3.94255,2722.2,2721.9,0.5615]
[1740012378927,3.94256,2722.2,2721.8,3.86210683]
[1740012379135,3.2078,2722.2,2721.8,3.86210683]
[1740012379434,3.2078,2722.2,2721.8,4.59696683]
[1740012379632,3.2078,2722.2,2721.9,0.73483]
[1740012379831,3.2078,2722.2,2721.8,3.86210683]
[1740012380132,3.2078,2722.2,2721.8,4.59694683]
[1740012380529,3.2078,2722.2,2721.8,3.86210683]
[1740012380735,3.2078,2721.9,2721.8,3.86210683]
[1740012380926,5.5938,2721.9,2721.8,3.86210683]
[1740012381127,5.5938,2721.9,2721.8,0.00550489]
[1740012381334,6.32863,2721.9,2721.8,0.00550489]
[1740012381640,0.73496,2721.5,2721.0,3.2078]
[1740012381833,6.1415,2721.4,2721.0,3.2078]
[1740012382034,0.555,2721.3,2721.0,3.2078]
[1740012382336,0.555,2721.3,2720.8,1.1149]
[1740012382528,6.1415,2721.4,2720.8,1.1149]
[1740012382722,6.1415,2721.4,2720.9,0.5498]
[1740012382934,6.1415,2721.4,2721.1,0.73503]
[1740012383136,6.1415,2721.4,2720.9,0.5498]
[1740012383329,3.2078,2721.4,2721.3,0.735]
[1740012383638,2.395,2721.4,2721.3,0.735]
[1740012383834,2.395,2721.4,2721.1,0.73504]
[1740012384030,5.6028,2721.4,2721.1,0.73504]
[1740012384230,5.6028,2721.4,2721.2,0.5699]
[1740012384724,5.6028,2721.4,2721.2,1.30491]
[1740012385132,5.6028,2721.4,2721.3,0.735]
[1740012385333,5.6028,2721.4,2721.3,0.5571]
[1740012386741,2.399,2721.4,2721.3,1.2921]
[1740012387035,3.2078,2721.7,2721.3,0.5571]
[1740012387237,2.4,2721.6,2721.5,0.73494]
[1740012388542,3.2078,2721.7,2721.6,0.73492]
[1740012390037,3.21330489,2722.3,2722.2,0.73475]
[1740012390234,0.00550489,2722.3,2722.2,0.73475]
[1740012390543,3.21330489,2722.3,2722.1,0.73477]
[1740012390938,0.00550489,2722.3,2722.1,0.73477]
[1740012391643,0.00550489,2722.3,2722.2,0.73475]
[1740012391832,0.00550489,2722.3,2721.9,0.5709]
[1740012391833,0.00550489,2722.3,2722.1,0.73477]
[1740012392242,0.00550489,2722.3,2721.9,1.1134]
[1740012392436,0.00550489,2722.3,2722.1,0.73476]
[1740012392636,0.00550489,2722.3,2722.0,0.7348]
[1740012392841,0.73479,2722.1,2721.8,0.5713]
[1740012393042,4.77231,2722.0,2721.8,0.5713]
[1740012393348,4.0375,2722.0,2721.8,0.5713]
[1740012393539,7.2453,2722.0,2721.8,0.5713]
[1740012393849,5.6098,2722.0,2721.8,0.5713]
[1740012394139,5.6098,2722.0,2721.9,0.73483]
[1740012396847,2.402,2722.0,2721.9,0.73483]
[1740012400350,5.6098,2722.0,2721.9,0.73483]
[1740012401546,5.6098,2722.0,2721.8,0.5713]
[1740012402348,5.6098,2722.0,2721.9,0.73483]
[1740012402543,5.6098,2722.0,2721.8,0.5713]
[1740012402755,5.6098,2722.0,2721.7,0.73488]
[1740012402959,5.6098,2722.0,2721.6,0.97466072]
[1740012403150,5.6098,2722.0,2721.9,0.73483]
[1740012406351,0.5792,2722.1,2721.5,1.1177]
[1740012406658,2.9722,2722.1,2722.0,0.73481]
[1740012407055,3.21330489,2722.3,2722.2,0.73475]
[1740012407255,0.00550489,2722.3,2722.2,0.73475]
[1740012407455,0.00550489,2722.3,2722.2,1.1120424]
[1740012408259,0.00550489,2722.3,2722.2,1.11200488]
[1740012408455,0.00550489,2722.3,2722.2,1.11185251]
[1740012408862,0.00550489,2722.3,2722.2,41.91185251]
[1740012409864,0.00550489,2722.3,2722.2,41.53475]
[1740012410164,0.00550489,2722.3,2722.2,41.91175615]
[1740012410365,0.00550489,2722.3,2722.2,41.53475]
[1740012410959,0.00550489,2722.3,2722.2,41.91161204]
[1740012411762,4.89e-06,2722.3,2722.2,41.91161204]
[1740012411967,4.89e-06,2722.3,2722.2,47.91161204]
[1740012412553,4.89e-06,2722.3,2722.2,50.31261204]
[1740012412763,4.89e-06,2722.3,2722.2,50.31227436]
[1740012413972,4.89e-06,2722.3,2722.2,44.31227436]
[1740012414162,4.89e-06,2722.3,2722.2,50.31227436]
[1740012414666,4.89e-06,2722.3,2722.2,49.93575]
[1740012414867,4.89e-06,2722.3,2722.2,44.31212809]
[1740012415169,4.89e-06,2722.3,2722.2,50.31212809]
[1740012415973,3.2078,2723.0,2722.9,0.73456]
[1740012416473,1.0983,2723.2,2722.6,4.3343]
[1740012416678,1.0983,2723.2,2723.1,0.73451]
[1740012417970,0.5396,2723.3,2723.0,0.5648]
[1740012418160,0.00550489,2723.4,2723.3,0.73446]
[1740012423670,3.2078,2723.9,2723.8,0.73432]
[1740012423877,1.6973,2724.1,2724.0,0.73427]
[1740012424063,0.5594,2724.1,2724.0,0.73427]
[1740012426179,1.137,2724.1,2724.0,0.73427]
[1740012429886,3.2078,2724.2,2724.1,0.73424]
[1740012432075,0.00550489,2724.3,2723.8,3.2078]
[1740012432275,0.553,2724.1,2724.0,0.73427]
[1740012434882,0.553,2724.1,2724.0,1.70893072]
[1740012437686,0.553,2724.1,2724.0,0.97466072]
[1740012438187,3.67324,2724.1,2724.0,0.97466072]
[1740012438385,2.939,2724.1,2724.0,1.70893072]
[1740012439492,2.939,2724.1,2724.0,0.97466072]
[1740012440487,3.67324,2724.1,2724.0,0.97466072]
[1740012440688,2.939,2724.1,2723.8,0.97466072]
[1740012440989,0.5851,2724.0,2723.9,0.73428]
[1740012443290,0.5851,2724.0,2723.8,0.97466072]
[1740012443593,0.5385,2723.9,2723.8,0.97466072]
[1740012443786,1.2728,2723.9,2723.8,0.97466072]
[1740012444193,0.5385,2723.9,2723.8,0.97466072]
[1740012444600,1.2728,2723.9,2723.8,0.97466072]
[1740012444894,0.5385,2723.9,2723.8,1.70898072]
[1740012445688,0.5385,2723.9,2723.8,0.97466072]
[1740012446397,1.2728,2723.9,2723.8,0.97466072]
[1740012446593,0.5385,2723.9,2723.6,0.97466072]
[1740012446799,1.27281,2723.9,2723.6,0.97466072]
[1740012447094,1.27281,2723.9,2723.6,1.70903072]
[1740012447389,0.5385,2723.9,2723.6,0.97466072]
[1740012447589,3.2078,2723.7,2722.9,2.97029579]
[1740012447791,3.94226,2723.3,2722.9,3.70484579]
[1740012447988,1.87569,2723.2,2722.9,0.00550489]
[1740012448186,3.71191,2723.1,2722.9,0.00550489]
[1740012448394,0.73454,2723.0,2722.9,0.00550489]
[1740012448698,3.94234,2723.0,2722.9,0.00550489]
[1740012448889,4.00199734,2723.0,2722.9,0.00550489]
[1740012449084,4.00199734,2723.0,2722.9,0.00165826]
[1740012449799,3.26745734,2723.0,2722.9,0.00165826]
[1740012450004,3.94234,2723.0,2722.9,0.00165826]
[1740012450490,4.00199475,2723.0,2722.9,0.00165826]
[1740012452001,4.00199675,2723.0,2722.9,0.00165826]
[1740012453501,3.2078,2723.0,2722.9,0.00165826]
[1740012453705,3.2078,2723.0,2722.9,0.73621826]
[1740012455607,0.5774,2723.1,2723.0,0.73454]
[1740012455791,3.2078,2723.3,2722.9,0.00165826]
[1740012455991,5.6058,2723.3,2723.2,0.73448]
[1740012456603,5.6058,2723.3,2723.1,0.73449]
[1740012456799,5.6058,2723.3,2723.0,1.1225]
[1740012457104,5.6058,2723.3,2723.1,0.73451]
[1740012457802,5.6058,2723.3,2723.2,0.73448]
[1740012458302,5.6058,2723.3,2723.1,0.7345]
[1740012458693,5.6058,2723.3,2723.0,0.97466072]
[1740012458694,1.1337,2723.8,2723.2,0.73448]
[1740012458900,6.20174441,2723.7,2723.6,0.73438]
[1740012459200,6.1421,2723.7,2723.6,0.73438]
[1740012460404,6.1421,2723.7,2723.5,0.7344]
[1740012460898,6.1421,2723.7,2723.3,1.1335]
[1740012461100,6.1421,2723.7,2723.6,0.73438]
[1740012461604,3.7451,2723.7,2723.6,0.73438]
[1740012461802,3.2078,2723.7,2723.6,0.73438]
[1740012466003,5.6008,2724.1,2723.9,0.73428]
[1740012466307,5.6008,2724.1,2724.0,0.73427]
[1740012467706,3.2078,2724.1,2724.0,0.73427]
[1740012469104,0.00550489,2724.3,2724.2,0.73421]
[1740012469105,2.39650489,2724.3,2724.2,0.73421]
[1740012469314,0.00550489,2724.3,2724.2,0.73421]
[1740012474309,3.2078,2724.8,2724.7,0.73408]
[1740012475810,0.00550489,2725.0,2724.9,0.73403]
[1740012476801,0.00550489,2725.0,2724.9,1.70869072]
[1740012477000,4.8919,2725.7,2725.6,0.73384]
[1740012477212,4.95149006,2725.7,2725.6,0.73384]
[1740012477413,4.8919,2725.7,2725.6,0.73384]
[1740012477802,0.5519,2725.7,2725.6,0.73384]
[1740012478408,0.5519,2725.7,2725.5,0.73386]
[1740012478714,0.5519,2725.7,2725.6,0.73384]
[1740012479417,0.577,2725.8,2725.7,0.73381]
[1740012479602,0.00381256,2725.9,2725.8,0.73378]
[1740012481614,0.00381256,2725.9,2725.8,1.84568]
[1740012482611,3.2078,2726.5,2726.4,0.73362]
[1740012482910,3.2078,2726.5,2726.2,0.73366]
[1740012483108,3.2078,2726.5,2726.3,0.73365]
[1740012483713,3.2078,2726.5,2726.4,0.73362]
[1740012486710,3.2078,2726.5,2726.1,0.00550489]
[1740012486914,1.84754,2726.4,2726.1,0.00550489]
[1740012487312,1.1139,2726.4,2726.1,0.73920489]
[1740012487508,1.84754,2726.4,2726.1,0.00550489]
[1740012488114,3.2078,2726.2,2726.1,0.00550489]
[1740012488309,1.84754,2726.4,2726.1,0.73920489]
[1740012488618,3.2078,2726.2,2726.1,0.00550489]
[1740012490019,3.94148,2726.2,2726.1,0.00550489]
[1740012490222,3.2078,2726.2,2726.1,0.00550489]
[1740012490919,5.6028,2726.2,2726.1,0.00550489]
[1740012491428,0.5483,2726.4,2726.3,0.73365]
[1740012491719,3.2078,2726.5,2726.4,0.73362]
[1740012493130,3.2078,2726.5,2726.3,0.73364]
[1740012493317,3.2078,2726.5,2726.4,0.73362]
[1740012494317,6.33833,2726.8,2726.2,0.5742]
[1740012494623,0.73355,2726.7,2726.3,0.73363]
[1740012494821,5.6048,2726.8,2726.2,0.5742]
[1740012495116,3.2078,2726.5,2726.1,0.98016561]
[1740012495323,1.6693,2726.4,2726.1,0.98016561]
[1740012495519,2.40293,2726.4,2726.1,1.71386561]
[1740012496717,1.6693,2726.4,2726.1,1.71386561]
[1740012497122,2.40292,2726.4,2726.1,0.73920489]
[1740012497325,4.79792,2726.4,2726.1,0.73920489]
[1740012497927,4.79792,2726.4,2726.2,0.73366]
[1740012497928,4.0643,2726.4,2726.2,0.73366]
[1740012498425,4.79794,2726.4,2726.1,0.00550489]
[1740012498927,4.79794,2726.4,2726.1,0.73919489]
[1740012499927,4.79794,2726.4,2726.1,0.00550489]
[1740012500330,4.79794,2726.4,2726.1,0.73919489]
[1740012500532,2.395,2726.4,2726.1,0.00550489]
[1740012500727,2.395,2726.4,2726.3,0.73365]
[1740012501824,3.2078,2726.5,2726.3,0.73365]
[1740012502029,3.2078,2726.5,2726.4,0.73362]
[1740012503530,3.2078,2726.5,2726.2,0.5723]
[1740012503730,3.2078,2726.5,2726.3,0.73364]
[1740012504032,0.73363,2726.4,2726.1,0.73919489]
[1740012504230,0.5379,2726.4,2726.1,0.00550489]
[1740012504428,0.5379,2726.4,2726.3,0.73365]
[1740012504636,1.27153,2726.4,2726.1,0.73919489]
[1740012504937,0.5379,2726.4,2726.2,0.73367]
[1740012505332,0.5379,2726.4,2726.1,0.00550489]
[1740012505541,1.27152,2726.4,2726.1,0.73919489]
[1740012505930,0.5379,2726.4,2726.1,0.73919489]
[1740012506338,0.5379,2726.4,2726.1,0.00550489]
[1740012506539,0.5379,2726.4,2726.3,0.73365]
[1740012506743,0.5379,2726.4,2726.1,0.00550489]
[1740012506934,0.5379,2726.4,2726.2,0.73367]
[1740012507132,0.5379,2726.4,2726.3,0.73365]
[1740012507533,0.5379,2726.4,2726.1,0.00550489]
[1740012507837,2.392,2726.3,2726.1,0.73919489]
[1740012508028,2.392,2726.3,2726.1,0.00550489]
[1740012508236,2.392,2726.3,2726.2,0.73368]
[1740012508434,0.5379,2726.4,2726.3,0.73365]
[1740012508835,0.5379,2726.4,2726.2,1.1297]
[1740012509037,0.5379,2726.4,2726.3,0.73365]
[1740012510341,0.5379,2726.4,2726.2,1.1297]
[1740012510644,0.5379,2726.4,2726.3,0.73365]
[1740012511245,3.2078,2726.5,2726.4,0.73362]
[1740012514150,3.2078,2726.5,2726.4,1.70828072]
[1740012514345,20.359,2727.4,2726.4,1.70828072]
[1740012514346,3.2078,2727.1,2726.4,6.3758083]
[1740012514547,3.2078,2727.1,2727.0,0.73346]
[1740012514745,3.2078,2727.1,2726.9,0.73347]
[1740012514945,3.2078,2727.1,2726.7,42.85346072]
[1740012515146,3.2078,2727.1,2726.9,0.73347]
[1740012515449,3.2078,2727.1,2727.0,0.73346]
[1740012518949,3.2078,2727.1,2727.0,1.70812072]
[1740012519155,1.1347,2727.4,2727.3,0.73338]
[1740012519351,3.2078,2727.5,2727.0,0.97466072]
[1740012519547,3.2078,2727.5,2727.4,0.73335]
[1740012520454,0.5578,2727.9,2727.2,3.2078]
[1740012520756,0.5578,2727.9,2727.6,0.73328]
[1740012521052,0.5578,2727.9,2727.7,0.73326]
[1740012521442,0.5578,2727.9,2727.6,0.73328]
[1740012521846,0.5578,2727.9,2727.7,0.73327]
[1740012522252,0.5578,2727.9,2727.8,0.73325]
[1740012522647,1.1376,2728.0,2727.8,0.73325]
[1740012522853,3.5266,2728.0,2727.8,0.73325]
[1740012523363,1.1376,2728.0,2727.9,0.73322]
[1740012523652,0.5638,2728.0,2727.9,0.73322]
[1740012524044,0.5638,2728.0,2727.6,0.97466072]
[1740012524247,0.5638,2728.0,2727.8,0.73323]
[1740012524653,0.5638,2728.0,2727.9,0.73322]
[1740012524852,0.5638,2728.0,2727.6,0.97466072]
[1740012525153,3.2078,2727.8,2727.6,1.70796072]
[1740012525348,3.2078,2727.8,2727.6,0.97466072]
[1740012525551,1.28217,2727.7,2727.6,0.97466072]
[1740012526054,0.5489,2727.7,2727.5,0.00550489]
[1740012526358,1.2697,2727.6,2727.5,0.00550489]
[1740012526556,1.32924614,2727.6,2727.5,0.00550489]
[1740012527054,0.59594614,2727.6,2727.5,0.00550489]
[1740012527244,0.5364,2727.6,2727.5,0.00550489]
[1740012528456,2.4,2727.7,2727.5,0.73881489]
[1740012528950,2.4,2727.7,2727.6,0.7333]
[1740012529355,3.2078,2727.8,2727.6,1.0788]
[1740012529556,3.2078,2727.8,2727.7,0.73327]
[1740012532553,3.2078,2727.8,2727.6,2.39027]
[1740012532758,3.2078,2727.8,2727.6,1.81207]
[1740012533060,3.2078,2727.8,2727.6,1.0788]
[1740012533658,3.2078,2727.8,2727.7,0.73327]
[1740012534759,3.2078,2727.8,2727.6,1.0788]
[1740012534959,3.2078,2727.8,2727.7,0.73327]
[1740012535353,3.2078,2727.8,2727.6,1.0788]
[1740012535651,3.2078,2727.8,2727.6,1.81209]
[1740012535858,3.2078,2727.8,2727.6,1.8121]
[1740012536848,3.2078,2727.8,2727.7,0.73327]
[1740012537452,3.2078,2727.8,2727.6,1.26759]
[1740012537650,0.5687,2727.7,2727.6,1.26759]
[1740012538353,0.5687,2727.7,2727.6,1.2676]
[1740012539059,0.5687,2727.7,2727.6,0.5343]
[1740012540357,0.5687,2727.7,2727.6,1.2676]
[1740012540658,0.5687,2727.7,2727.6,0.7333]
[1740012541565,3.2078,2727.8,2727.7,0.73327]
[1740012541764,3.2078,2727.8,2727.5,0.00550489]
[1740012541961,3.94106,2727.8,2727.5,0.00550489]
[1740012542157,1.28637,2727.7,2727.5,0.00550489]
[1740012542358,0.5531,2727.7,2727.5,0.00550489]
[1740012542559,0.5691,2727.6,2727.5,0.73883489]
[1740012543063,0.5691,2727.6,2727.5,0.00550489]
[1740012543261,1.3024,2727.6,2727.5,0.00550489]
[1740012544160,0.5691,2727.6,2727.5,0.00550489]
[1740012544363,0.5691,2727.6,2727.5,0.73883489]
[1740012545265,5.6028,2727.8,2727.7,0.73327]
[1740012545661,5.6028,2727.8,2727.5,0.00550489]
[1740012545662,6.1444,2727.8,2727.5,0.00550489]
[1740012546261,3.7494,2727.8,2727.7,0.73327]
[1740012546559,6.1474,2727.8,2727.7,0.73327]
[1740012547461,3.2078,2727.8,2727.7,0.73327]
[1740012548465,3.2078,2727.8,2727.7,1.10892493]
[1740012548665,3.2078,2727.8,2727.7,0.73327]
[1740012548860,3.2078,2727.8,2727.7,1.1089168]
[1740012549664,0.5416,2728.1,2728.0,0.73319]
[1740012552266,0.5416,2728.1,2727.9,0.5532]
[1740012552661,0.5416,2728.1,2728.0,0.73319]
[1740012552861,3.7494,2728.1,2727.9,0.5532]
[1740012553064,4.48257,2728.1,2727.9,0.5532]
[1740012553369,3.7494,2728.1,2727.9,0.5532]
[1740012553571,6.1434,2728.1,2727.9,0.5532]
[1740012553764,6.7176,2728.1,2727.9,0.5532]
[1740012554064,3.2078,2728.1,2728.0,0.73319]
[1740012554266,3.2078,2728.4,2728.0,0.73319]
[1740012554570,3.12712,2728.3,2728.0,0.73317]
[1740012554770,3.2078,2728.1,2728.0,0.73317]
[1740012555562,3.2078,2728.1,2727.8,1.26813]
[1740012555765,0.5781,2728.0,2727.9,0.73321]
[1740012556768,3.2078,2728.1,2728.0,0.73319]
[1740012557162,3.2078,2728.8,2728.0,6.0]
[1740012557363,3.2078,2728.8,2728.7,0.733]
[1740012557664,3.2078,2728.8,2728.3,0.82226072]
[1740012557870,1.32162,2728.7,2728.3,0.82226072]
[1740012558171,1.32162,2728.7,2728.3,0.08916072]
[1740012558369,0.5712,2728.6,2728.3,0.08916072]
[1740012558566,0.5548,2728.5,2728.3,0.82225072]
[1740012558866,0.7331,2728.4,2728.1,3.2078]
[1740012559058,0.5548,2728.5,2728.1,3.2078]
[1740012559059,0.73312,2728.3,2728.1,3.2078]
[1740012559261,0.5886,2728.2,2728.1,3.94096]
[1740012559465,1.1598,2728.2,2728.1,3.94096]
[1740012559871,1.1598,2728.2,2728.1,3.2078]
[1740012561368,3.5628,2728.2,2728.1,3.2078]
[1740012561566,3.5628,2728.2,2727.8,1.1284]
[1740012561771,3.5628,2728.2,2727.7,3.2078]
[1740012561772,4.29595,2728.2,2727.7,3.2078]
[1740012562073,1.1598,2728.2,2727.7,3.2078]
[1740012562378,2.402,2728.1,2727.7,3.2078]
[1740012562673,3.13517,2728.1,2727.8,0.73324]
[1740012562866,2.402,2728.1,2727.7,3.2078]
[1740012563067,2.402,2728.1,2727.8,0.73323]
[1740012564066,2.402,2728.1,2727.7,3.2078]
[1740012564270,2.402,2728.1,2727.8,0.73323]
[1740012564468,3.13517,2728.1,2727.7,3.94106]
[1740012564673,3.13517,2728.1,2727.8,0.73323]
[1740012564871,2.402,2728.1,2727.9,0.73321]
[1740012565772,2.402,2728.1,2727.8,0.08916072]
[1740012565976,0.7332,2728.0,2727.8,0.08916072]
[1740012566179,0.5699,2727.9,2727.8,0.82241072]
[1740012566972,0.5699,2727.9,2727.8,0.08916072]
[1740012567276,1.30312,2727.9,2727.8,0.08916072]
[1740012567478,0.5699,2727.9,2727.8,0.08916072]
[1740012567771,1.30312,2727.9,2727.8,0.08916072]
[1740012567977,0.5699,2727.9,2727.8,0.08916072]
[1740012568172,1.30312,2727.9,2727.8,0.08916072]
[1740012568573,0.5699,2727.9,2727.8,0.08916072]
[1740012569179,1.30312,2727.9,2727.8,0.08916072]
[1740012569377,1.30312,2727.9,2727.5,0.73880489]
[1740012569378,0.73329,2727.7,2727.5,0.00550489]
[1740012569581,2.9459,2727.6,2727.5,0.00550489]
[1740012572580,2.9459,2727.6,2727.5,0.00550489]
[1740012573180,0.5473,2727.8,2727.5,0.00550489]
[1740012573379,2.9423,2727.8,2727.7,0.73327]
[1740012573584,2.395,2727.8,2727.7,0.73327]
[1740012574179,2.395,2727.8,2727.6,3.7937]
[1740012574379,2.395,2727.8,2727.7,0.73327]
[1740012576685,3.5028,2728.1,2728.0,0.73319]
[1740012578389,1.1098,2728.1,2728.0,0.73319]
[1740012579288,0.5693,2728.1,2728.0,0.73319]
[1740012579487,2.9623,2728.1,2728.0,0.73319]
[1740012580085,2.392,2728.3,2727.6,3.7937]
[1740012580291,2.392,2728.4,2727.8,0.73325]
[1740012580485,2.392,2728.4,2727.9,1.1678]
[1740012580684,2.392,2728.4,2728.3,0.73311]
[1740012581892,3.2078,2728.6,2728.0,44.63366072]
[1740012582093,3.2078,2728.6,2728.5,0.73306]
[1740012583802,3.2078,2728.6,2728.0,44.63366072]
[1740012584100,3.2078,2728.6,2728.1,0.37506599]
[1740012584402,3.2078,2728.6,2728.4,0.73306]
[1740012584600,3.2078,2728.6,2728.0,44.63366072]
[1740012584901,1.1093,2728.5,2728.0,44.63366072]
[1740012585097,1.1093,2728.5,2728.4,0.73308]
[1740012585705,1.1093,2728.5,2728.0,3.83366072]
[1740012585905,1.1093,2728.5,2728.4,0.73308]
[1740012586404,1.1093,2728.5,2728.0,3.83366072]
[1740012586705,1.1093,2728.5,2728.3,0.7331]
[1740012586902,1.1093,2728.5,2728.0,3.83366072]
[1740012587605,1.1093,2728.5,2728.4,0.73308]
[1740012589107,1.1093,2728.5,2728.3,0.73309]